Workbook

Sheet Aizņēmuma kalkulators
B2: MĀCĪBU AIZŅĒMUMS | G2: 50,000.00 € | L2: 2011-05-10
B3: KALKULATORS
B5: Ir norādīts, ka jūsu kopējā mēneša mācību aizņēmuma atmaksa nepārsniedz 8% no jūsu pirmā darba gada algas.
C7: Jūsu kombinētais pašreizējais mēneša maksājums: | F7: =CollegeLoans[[#Totals],[Pašreizējais mēneša maksājums]] -> 328.59 € | I7: Jūsu kombinētais plānotais ikmēneša maksājums: | M7: =CollegeLoans[[#Totals],[Plānotais maksājums]] -> 328.59 €
C8: Procentos no mēneša ienākumiem: | F8: =CollegeLoans[[#Totals],[Pašreizējais mēneša maksājums]]/EstimatedMonthlySalary -> 7.89% | I8: Procentos no mēneša ienākumiem. | M8: =CollegeLoans[[#Totals],[Plānotais maksājums]]/EstimatedMonthlySalary -> 7.89%
C11: GALVENĀ AIZŅĒMUMA INFORMĀCIJA | G11: AIZŅĒMUMA ATMAKSAS DATI | J11: DETALIZĒTA MAKSĀJUMU INFORMĀCIJA
C12: Aizņēmuma nr. | D12: Aizdevējs | E12: Aizņēmuma summa | F12: Gada procentu likme | G12: Sākuma datums | H12: Ilgums (gadi) | I12: Beigu datums | J12: Pašreizējais mēneša maksājums | K12: Procenti kopā | L12: Plānotais maksājums | M12: Gada maksājumi
C13: 10998M88 | D13: Aizdevējs 1 | E13: 10,000.00 € | F13: 5.00% | G13: 2011-04-01 | H13: 10 | I13: =IF(AND(CollegeLoans[[#This Row],[Sākuma datums]]>0,CollegeLoans[[#This Row],[Ilgums (gadi)]]>0),EDATE(CollegeLoans[[#This Row],[Sākuma datums]],CollegeLoans[[#This Row],[Ilgums (gadi)]]*12),"") -> 2021-04-01 | J13: =IF(AND(LoanStartLToday,COUNT(CollegeLoans[[#This Row],[Aizņēmuma summa]:[Ilgums (gadi)]])=4,CollegeLoans[[#This Row],[Sākuma datums]]<TODAY()),PMT(CollegeLoans[[#This Row],[Gada procentu likme]]/12,CollegeLoans[[#This Row],[Ilgums (gadi)]]*12,-CollegeLoans[[#This Row],[Aizņēmuma summa]],0,0),"") -> 106.07 € | K13: =IFERROR((CollegeLoans[[#This Row],[Plānotais maksājums]]*(CollegeLoans[[#This Row],[Ilgums (gadi)]]*12))-CollegeLoans[[#This Row],[Aizņēmuma summa]],"") -> 2,727.86 € | L13: =IF(COUNTA(CollegeLoans[[#This Row],[Aizņēmuma summa]:[Ilgums (gadi)]])<>4,"",PMT(CollegeLoans[[#This Row],[Gada procentu likme]]/12,CollegeLoans[[#This Row],[Ilgums (gadi)]]*12,-CollegeLoans[[#This Row],[Aizņēmuma summa]],0,0)) -> 106.07 € | M13: =IFERROR(CollegeLoans[[#This Row],[Plānotais maksājums]]*12,"") -> 1,272.79 €
C14: 20987N87 | D14: Aizdevējs 2 | E14: 8,000.00 € | F14: 5.00% | G14: 2011-05-01 | H14: 10 | I14: =IF(AND(CollegeLoans[[#This Row],[Sākuma datums]]>0,CollegeLoans[[#This Row],[Ilgums (gadi)]]>0),EDATE(CollegeLoans[[#This Row],[Sākuma datums]],CollegeLoans[[#This Row],[Ilgums (gadi)]]*12),"") -> 2021-05-01 | J14: =IF(AND(LoanStartLToday,COUNT(CollegeLoans[[#This Row],[Aizņēmuma summa]:[Ilgums (gadi)]])=4,CollegeLoans[[#This Row],[Sākuma datums]]<TODAY()),PMT(CollegeLoans[[#This Row],[Gada procentu likme]]/12,CollegeLoans[[#This Row],[Ilgums (gadi)]]*12,-CollegeLoans[[#This Row],[Aizņēmuma summa]],0,0),"") -> 84.85 € | K14: =IFERROR((CollegeLoans[[#This Row],[Plānotais maksājums]]*(CollegeLoans[[#This Row],[Ilgums (gadi)]]*12))-CollegeLoans[[#This Row],[Aizņēmuma summa]],"") -> 2,182.29 € | L14: =IF(COUNTA(CollegeLoans[[#This Row],[Aizņēmuma summa]:[Ilgums (gadi)]])<>4,"",PMT(CollegeLoans[[#This Row],[Gada procentu likme]]/12,CollegeLoans[[#This Row],[Ilgums (gadi)]]*12,-CollegeLoans[[#This Row],[Aizņēmuma summa]],0,0)) -> 84.85 € | M14: =IFERROR(CollegeLoans[[#This Row],[Plānotais maksājums]]*12,"") -> 1,018.23 €
C15: 36785LM | D15: Aizdevējs 3 | E15: 6,000.00 € | F15: 4.50% | G15: 2012-03-01 | H15: 10 | I15: =IF(AND(CollegeLoans[[#This Row],[Sākuma datums]]>0,CollegeLoans[[#This Row],[Ilgums (gadi)]]>0),EDATE(CollegeLoans[[#This Row],[Sākuma datums]],CollegeLoans[[#This Row],[Ilgums (gadi)]]*12),"") -> 2022-03-01 | J15: =IF(AND(LoanStartLToday,COUNT(CollegeLoans[[#This Row],[Aizņēmuma summa]:[Ilgums (gadi)]])=4,CollegeLoans[[#This Row],[Sākuma datums]]<TODAY()),PMT(CollegeLoans[[#This Row],[Gada procentu likme]]/12,CollegeLoans[[#This Row],[Ilgums (gadi)]]*12,-CollegeLoans[[#This Row],[Aizņēmuma summa]],0,0),"") -> 62.18 € | K15: =IFERROR((CollegeLoans[[#This Row],[Plānotais maksājums]]*(CollegeLoans[[#This Row],[Ilgums (gadi)]]*12))-CollegeLoans[[#This Row],[Aizņēmuma summa]],"") -> 1,461.97 € | L15: =IF(COUNTA(CollegeLoans[[#This Row],[Aizņēmuma summa]:[Ilgums (gadi)]])<>4,"",PMT(CollegeLoans[[#This Row],[Gada procentu likme]]/12,CollegeLoans[[#This Row],[Ilgums (gadi)]]*12,-CollegeLoans[[#This Row],[Aizņēmuma summa]],0,0)) -> 62.18 € | M15: =IFERROR(CollegeLoans[[#This Row],[Plānotais maksājums]]*12,"") -> 746.20 €
C16: 765R43 | D16: Aizdevējs 4 | E16: 4,000.00 € | F16: 5.00% | G16: 2012-05-01 | H16: 5 | I16: =IF(AND(CollegeLoans[[#This Row],[Sākuma datums]]>0,CollegeLoans[[#This Row],[Ilgums (gadi)]]>0),EDATE(CollegeLoans[[#This Row],[Sākuma datums]],CollegeLoans[[#This Row],[Ilgums (gadi)]]*12),"") -> 2017-05-01 | J16: =IF(AND(LoanStartLToday,COUNT(CollegeLoans[[#This Row],[Aizņēmuma summa]:[Ilgums (gadi)]])=4,CollegeLoans[[#This Row],[Sākuma datums]]<TODAY()),PMT(CollegeLoans[[#This Row],[Gada procentu likme]]/12,CollegeLoans[[#This Row],[Ilgums (gadi)]]*12,-CollegeLoans[[#This Row],[Aizņēmuma summa]],0,0),"") -> 75.48 € | K16: =IFERROR((CollegeLoans[[#This Row],[Plānotais maksājums]]*(CollegeLoans[[#This Row],[Ilgums (gadi)]]*12))-CollegeLoans[[#This Row],[Aizņēmuma summa]],"") -> 529.10 € | L16: =IF(COUNTA(CollegeLoans[[#This Row],[Aizņēmuma summa]:[Ilgums (gadi)]])<>4,"",PMT(CollegeLoans[[#This Row],[Gada procentu likme]]/12,CollegeLoans[[#This Row],[Ilgums (gadi)]]*12,-CollegeLoans[[#This Row],[Aizņēmuma summa]],0,0)) -> 75.48 € | M16: =IFERROR(CollegeLoans[[#This Row],[Plānotais maksājums]]*12,"") -> 905.82 €
C17: Kopsummas | E17: =SUBTOTAL(109,CollegeLoans[Aizņēmuma summa]) -> 28,000.00 € | J17: =SUBTOTAL(109,CollegeLoans[Pašreizējais mēneša maksājums]) -> 328.59 € | K17: =SUBTOTAL(109,CollegeLoans[Procenti kopā]) -> 6,901.21 € | L17: =SUBTOTAL(109,CollegeLoans[Plānotais maksājums]) -> 328.59 € | M17: =SUBTOTAL(109,CollegeLoans[Gada maksājumi]) -> 3,943.03 €
C18: Vidēji | E18: =AVERAGE(CollegeLoans[Aizņēmuma summa]) -> 7,000.00 € | F18: =AVERAGE(CollegeLoans[Gada procentu likme]) -> 4.88% | K18: =AVERAGE(CollegeLoans[Procenti kopā]) -> 1,725.30 € | M18: =AVERAGE(CollegeLoans[Gada maksājumi]) -> 985.76 €
K20: Kopējā konsolidētā aizņēmuma atmaksa: | M20: =CollegeLoans[[#Totals],[Aizņēmuma summa]]+CollegeLoans[[#Totals],[Procenti kopā]] -> 34,901.21 €
K22: Aplēstie mēneša ienākumi pēc mācību beigšanas: | M22: =(EstimatedAnnualSalary/12) -> 4,166.67 €
